[Event "Late-Titled-Tuesday-Blitz-March-19-2024"]
[Site "Chess.com"]
[Date "2024.03.19"]
[Round "11"]
[White "FairChess_on_YouTube"]
[Black "GMBenjaminBok"]
[Result "0-1"]
[WhiteElo "3135"]
[BlackElo "2982"]
[TimeControl "180+1"]
[EndTime "16:05:21 PDT"]
[Termination "GMBenjaminBok won by resignation"]

1. b3 {[%clk 0:03:00.9]} 1... d5 {[%clk 0:02:58.5]} 2. Ba3 {[%clk 0:02:59.9]}
2... Bf5 {[%clk 0:02:55.8]} 3. Nf3 {[%clk 0:02:59.3]} 3... Nf6 {[%clk
0:02:50.2]} 4. e3 {[%clk 0:02:59.1]} 4... Nbd7 {[%clk 0:02:32.5]} 5. c4 {[%clk
0:02:59.1]} 5... e6 {[%clk 0:02:27.8]} 6. Bxf8 {[%clk 0:02:58.3]} 6... Nxf8
{[%clk 0:02:28.7]} 7. Nc3 {[%clk 0:02:58.1]} 7... N8d7 {[%clk 0:02:27.4]} 8. Be2
{[%clk 0:02:54.9]} 8... h6 {[%clk 0:02:25]} 9. O-O {[%clk 0:02:54.7]} 9... O-O
{[%clk 0:02:24.7]} 10. d4 {[%clk 0:02:54.5]} 10... c6 {[%clk 0:02:23.2]} 11. b4
{[%clk 0:02:53.2]} 11... Qe7 {[%clk 0:02:21.1]} 12. Qb3 {[%clk 0:02:50.9]} 12...
Ne4 {[%clk 0:02:21.3]} 13. Rfc1 {[%clk 0:02:49.1]} 13... Bg4 {[%clk 0:02:20.2]}
14. Qb2 {[%clk 0:02:49.2]} 14... Nxc3 {[%clk 0:02:05.4]} 15. Rxc3 {[%clk
0:02:50.1]} 15... Bxf3 {[%clk 0:01:52.2]} 16. Bxf3 {[%clk 0:02:49.9]} 16... Nb6
{[%clk 0:01:51.6]} 17. Qb3 {[%clk 0:02:08.7]} 17... Nxc4 {[%clk 0:01:51.2]} 18.
Be2 {[%clk 0:02:07.7]} 18... b5 {[%clk 0:01:50.9]} 19. a4 {[%clk 0:02:07]} 19...
a5 {[%clk 0:01:50.7]} 20. axb5 {[%clk 0:01:51.7]} 20... axb4 {[%clk 0:01:45.4]}
21. Rcc1 {[%clk 0:01:51.5]} 21... cxb5 {[%clk 0:01:42]} 22. Rab1 {[%clk
0:01:51.1]} 22... Ra4 {[%clk 0:01:32.5]} 23. Qd1 {[%clk 0:01:42.2]} 23... Rfa8
{[%clk 0:01:27.6]} 24. Qe1 {[%clk 0:01:41.5]} 24... Ra2 {[%clk 0:01:16.8]} 25.
Bd3 {[%clk 0:00:25.7]} 25... Nd2 {[%clk 0:00:49.3]} 26. Ra1 {[%clk 0:00:23.2]}
26... b3 {[%clk 0:00:26.5]} 27. h4 {[%clk 0:00:23]} 27... g6 {[%clk 0:00:20.3]}
28. h5 {[%clk 0:00:16.2]} 28... gxh5 {[%clk 0:00:19.9]} 29. Qd1 {[%clk
0:00:05.1]} 29... Rxa1 {[%clk 0:00:10.1]} 30. Rxa1 {[%clk 0:00:04.9]} 30... Rxa1
{[%clk 0:00:11]} 31. Qxa1 {[%clk 0:00:05.2]} 31... Qb4 {[%clk 0:00:05.9]} 32.
Qa8+ {[%clk 0:00:04.8]} 32... Kg7 {[%clk 0:00:05.6]} 33. Qb8 {[%clk 0:00:05.5]}
33... Ne4 {[%clk 0:00:03.1]} 34. Qe5+ {[%clk 0:00:02.8]} 34... Nf6 {[%clk
0:00:02.6]} 35. Qg3+ {[%clk 0:00:03.1]} 35... Ng4 {[%clk 0:00:02.4]} 36. f3
{[%clk 0:00:02.8]} 36... Qd2 {[%clk 0:00:02.3]} 37. fxg4 {[%clk 0:00:02.5]}
37... Qxd3 {[%clk 0:00:02.8]} 38. gxh5+ {[%clk 0:00:03.1]} 38... Kh7 {[%clk
0:00:03.3]} 39. Qc7 {[%clk 0:00:02.1]} 39... Qf5 {[%clk 0:00:03]} 40. Qc3 {[%clk
0:00:02.3]} 40... Qxh5 {[%clk 0:00:01.9]} 41. Qxb3 {[%clk 0:00:02.4]} 41... Qe2
{[%clk 0:00:02.4]} 42. Kh2 {[%clk 0:00:01.8]} 42... Kg7 {[%clk 0:00:02.4]} 43.
Qc3 {[%clk 0:00:01.4]} 43... Qc4 {[%clk 0:00:02.1]} 44. Qe1 {[%clk 0:00:01.4]}
44... Qc7+ {[%clk 0:00:02.2]} 45. Qg3+ {[%clk 0:00:02.3]} 45... Qxg3+ {[%clk
0:00:02.2]} 46. Kxg3 {[%clk 0:00:02.7]} 46... b4 {[%clk 0:00:03.1]} 47. Kf3
{[%clk 0:00:02.9]} 47... b3 {[%clk 0:00:03.6]} 48. Ke2 {[%clk 0:00:03.8]} 48...
b2 {[%clk 0:00:04.4]} 49. Kd2 {[%clk 0:00:04.7]} 49... b1=Q {[%clk 0:00:05]} 0-1

[Event "Late-Titled-Tuesday-Blitz-March-19-2024"]
[Site "Chess.com"]
[Date "2024.03.19"]
[Round "11"]
[White "jaramsdal"]
[Black "tarno17"]
[Result "0-1"]
[WhiteElo "2261"]
[BlackElo "2195"]
[TimeControl "180+1"]
[EndTime "16:05:21 PDT"]
[Termination "tarno17 won on time"]

1. Nf3 {[%clk 0:03:00.9]} 1... d5 {[%clk 0:02:57.4]} 2. g3 {[%clk 0:02:56.1]}
2... Nd7 {[%clk 0:02:47.8]} 3. d4 {[%clk 0:02:42.8]} 3... Ngf6 {[%clk
0:02:45.1]} 4. Bg2 {[%clk 0:02:39.7]} 4... e6 {[%clk 0:02:45.1]} 5. O-O {[%clk
0:02:38.3]} 5... b6 {[%clk 0:02:44.7]} 6. c4 {[%clk 0:02:29.6]} 6... Ba6 {[%clk
0:02:36.8]} 7. Ne5 {[%clk 0:02:16.8]} 7... Bb7 {[%clk 0:02:18.7]} 8. Nc3 {[%clk
0:02:06.4]} 8... c6 {[%clk 0:02:14.6]} 9. f4 {[%clk 0:02:04.7]} 9... Be7 {[%clk
0:02:12]} 10. g4 {[%clk 0:01:46.4]} 10... Nxe5 {[%clk 0:02:04.7]} 11. fxe5
{[%clk 0:01:47.3]} 11... Nxg4 {[%clk 0:01:59.8]} 12. e4 {[%clk 0:01:39.2]} 12...
Nh6 {[%clk 0:01:44.3]} 13. Bxh6 {[%clk 0:01:31.5]} 13... gxh6 {[%clk 0:01:45.2]}
14. exd5 {[%clk 0:01:10.5]} 14... cxd5 {[%clk 0:01:42.4]} 15. cxd5 {[%clk
0:01:07.7]} 15... Bxd5 {[%clk 0:01:39.1]} 16. Nxd5 {[%clk 0:01:07.3]} 16... exd5
{[%clk 0:01:38.7]} 17. Qh5 {[%clk 0:01:07]} 17... Rf8 {[%clk 0:01:35.9]} 18. e6
{[%clk 0:01:07.2]} 18... Qd6 {[%clk 0:01:16.3]} 19. exf7+ {[%clk 0:00:55.1]}
19... Kd8 {[%clk 0:01:14.5]} 20. Qxd5 {[%clk 0:00:44.4]} 20... Qxd5 {[%clk
0:01:11.1]} 21. Bxd5 {[%clk 0:00:45.3]} 21... Rc8 {[%clk 0:01:07.3]} 22. Rac1
{[%clk 0:00:45.1]} 22... Rxc1 {[%clk 0:01:02.6]} 23. Rxc1 {[%clk 0:00:46]} 23...
Bd6 {[%clk 0:00:57.5]} 24. Be6 {[%clk 0:00:38.1]} 24... Ke7 {[%clk 0:00:51.7]}
25. d5 {[%clk 0:00:38.4]} 25... Bc5+ {[%clk 0:00:46.1]} 26. Kg2 {[%clk
0:00:35.4]} 26... Kf6 {[%clk 0:00:45.6]} 27. Rf1+ {[%clk 0:00:33.2]} 27... Ke5
{[%clk 0:00:45.4]} 28. Kg3 {[%clk 0:00:32.3]} 28... h5 {[%clk 0:00:43.3]} 29.
Kh4 {[%clk 0:00:31]} 29... Bd4 {[%clk 0:00:14.9]} 30. b3 {[%clk 0:00:27.1]}
30... a5 {[%clk 0:00:09.8]} 31. Kxh5 {[%clk 0:00:27]} 31... Bc5 {[%clk
0:00:09.1]} 32. Rf5+ {[%clk 0:00:22.8]} 32... Ke4 {[%clk 0:00:08.8]} 33. Kh6
{[%clk 0:00:19.1]} 33... Ra8 {[%clk 0:00:06.5]} 34. Kxh7 {[%clk 0:00:17]} 34...
a4 {[%clk 0:00:05.8]} 35. bxa4 {[%clk 0:00:15.2]} 35... Rf8 {[%clk 0:00:03.6]}
36. h4 {[%clk 0:00:12.2]} 36... Bd4 {[%clk 0:00:02.2]} 37. Kg6 {[%clk 0:00:07]}
37... Bc5 {[%clk 0:00:02]} 38. h5 {[%clk 0:00:07]} 38... Bd4 {[%clk 0:00:02]}
39. h6 {[%clk 0:00:07]} 39... Bc5 {[%clk 0:00:02.4]} 40. Rh5 {[%clk 0:00:07]}
40... Rh8 {[%clk 0:00:02.4]} 41. h7 {[%clk 0:00:05.4]} 41... Rf8 {[%clk
0:00:01.8]} 42. h8=Q {[%clk 0:00:04.4]} 42... Rxh8 {[%clk 0:00:02.6]} 43. Rxh8
{[%clk 0:00:04.3]} 43... Bd4 {[%clk 0:00:03.5]} 44. Rh4+ {[%clk 0:00:04.2]}
44... Ke5 {[%clk 0:00:03.5]} 45. Rxd4 {[%clk 0:00:01.5]} 45... b5 {[%clk
0:00:04.4]} 0-1

[Event "Late-Titled-Tuesday-Blitz-March-19-2024"]
[Site "Chess.com"]
[Date "2024.03.19"]
[Round "11"]
[White "Redzishchess"]
[Black "EcosseKillie"]
[Result "1-0"]
[WhiteElo "2484"]
[BlackElo "2319"]
[TimeControl "180+1"]
[EndTime "16:05:23 PDT"]
[Termination "Redzishchess won on time"]

1. d4 {[%clk 0:03:00.9]} 1... Nc6 {[%clk 0:02:59.4]} 2. Nf3 {[%clk 0:03:00]}
2... d5 {[%clk 0:02:55.4]} 3. b3 {[%clk 0:02:46.6]} 3... Bg4 {[%clk 0:02:52.8]}
4. Bb2 {[%clk 0:02:46.4]} 4... Bxf3 {[%clk 0:02:51.7]} 5. exf3 {[%clk
0:02:47.3]} 5... Nf6 {[%clk 0:02:51.7]} 6. Bd3 {[%clk 0:02:47]} 6... g6 {[%clk
0:02:48.5]} 7. O-O {[%clk 0:02:46.5]} 7... Bg7 {[%clk 0:02:49]} 8. a3 {[%clk
0:02:44.5]} 8... O-O {[%clk 0:02:49.2]} 9. Nd2 {[%clk 0:02:42.3]} 9... a6 {[%clk
0:02:44.1]} 10. Re1 {[%clk 0:02:32.9]} 10... Re8 {[%clk 0:02:41.2]} 11. Nf1
{[%clk 0:02:05.5]} 11... Nh5 {[%clk 0:02:30.5]} 12. c3 {[%clk 0:01:58.4]} 12...
e5 {[%clk 0:02:29.1]} 13. dxe5 {[%clk 0:01:52.9]} 13... Nxe5 {[%clk 0:02:28.8]}
14. Bc2 {[%clk 0:01:29.9]} 14... c6 {[%clk 0:02:22]} 15. Qd2 {[%clk 0:01:19.1]}
15... Qd7 {[%clk 0:02:14.2]} 16. Ng3 {[%clk 0:00:49.9]} 16... Nxg3 {[%clk
0:02:09.5]} 17. hxg3 {[%clk 0:00:50.8]} 17... f5 {[%clk 0:01:47.7]} 18. Re2
{[%clk 0:00:49.6]} 18... Nf7 {[%clk 0:01:47]} 19. Rae1 {[%clk 0:00:49.2]} 19...
Nd6 {[%clk 0:01:46.5]} 20. a4 {[%clk 0:00:35.1]} 20... Rxe2 {[%clk 0:01:41.6]}
21. Rxe2 {[%clk 0:00:36]} 21... Re8 {[%clk 0:01:41.5]} 22. Bd3 {[%clk
0:00:22.9]} 22... Rxe2 {[%clk 0:01:24.6]} 23. Qxe2 {[%clk 0:00:23.8]} 23... b5
{[%clk 0:01:20.6]} 24. Qd2 {[%clk 0:00:11.1]} 24... Qe6 {[%clk 0:01:14]} 25. Ba3
{[%clk 0:00:10.7]} 25... Nf7 {[%clk 0:01:08.6]} 26. Qf4 {[%clk 0:00:10.4]} 26...
Ne5 {[%clk 0:01:07.7]} 27. Bf1 {[%clk 0:00:08.3]} 27... h6 {[%clk 0:00:57.5]}
28. Bc5 {[%clk 0:00:07]} 28... g5 {[%clk 0:00:57.7]} 29. Qb4 {[%clk 0:00:06.1]}
29... Nd7 {[%clk 0:00:54.1]} 30. Bd4 {[%clk 0:00:05.9]} 30... Bf8 {[%clk
0:00:49.9]} 31. Qa5 {[%clk 0:00:05.2]} 31... c5 {[%clk 0:00:49]} 32. Be3 {[%clk
0:00:04.8]} 32... c4 {[%clk 0:00:42.4]} 33. axb5 {[%clk 0:00:04.5]} 33... axb5
{[%clk 0:00:38.7]} 34. Qxb5 {[%clk 0:00:04.4]} 34... cxb3 {[%clk 0:00:35.5]} 35.
Qxb3 {[%clk 0:00:05.3]} 35... Bc5 {[%clk 0:00:24.9]} 36. Bxc5 {[%clk 0:00:03.4]}
36... Nxc5 {[%clk 0:00:25.8]} 37. Qb8+ {[%clk 0:00:03.6]} 37... Kg7 {[%clk
0:00:22.5]} 38. f4 {[%clk 0:00:04]} 38... Ne4 {[%clk 0:00:20.2]} 39. fxg5 {[%clk
0:00:03.5]} 39... hxg5 {[%clk 0:00:20]} 40. Qa7+ {[%clk 0:00:02]} 40... Kg6
{[%clk 0:00:19.2]} 41. Qd4 {[%clk 0:00:02.1]} 41... Qc6 {[%clk 0:00:06]} 42. c4
{[%clk 0:00:02.1]} 42... dxc4 {[%clk 0:00:05.7]} 43. Bxc4 {[%clk 0:00:02.7]} 1-0

[Event "Late-Titled-Tuesday-Blitz-March-19-2024"]
[Site "Chess.com"]
[Date "2024.03.19"]
[Round "11"]
[White "Fandorine"]
[Black "Goryachkina"]
[Result "1-0"]
[WhiteElo "2931"]
[BlackElo "2680"]
[TimeControl "180+1"]
[EndTime "16:05:25 PDT"]
[Termination "Fandorine won by resignation"]

1. d4 {[%clk 0:03:00.9]} 1... Nf6 {[%clk 0:02:59.3]} 2. c4 {[%clk 0:03:00.9]}
2... e6 {[%clk 0:02:59.5]} 3. Nc3 {[%clk 0:02:57.6]} 3... Bb4 {[%clk 0:02:58.9]}
4. e3 {[%clk 0:02:56.3]} 4... O-O {[%clk 0:02:58]} 5. Bd3 {[%clk 0:02:53.2]}
5... d5 {[%clk 0:02:57.6]} 6. a3 {[%clk 0:02:53.2]} 6... Bxc3+ {[%clk
0:02:57.4]} 7. bxc3 {[%clk 0:02:54.1]} 7... dxc4 {[%clk 0:02:57.6]} 8. Bxc4
{[%clk 0:02:54.5]} 8... c5 {[%clk 0:02:57.8]} 9. Ne2 {[%clk 0:02:54.8]} 9... Nc6
{[%clk 0:02:48.7]} 10. f4 {[%clk 0:02:52.7]} 10... b6 {[%clk 0:02:37.2]} 11. O-O
{[%clk 0:02:48]} 11... Bb7 {[%clk 0:02:37.3]} 12. Ng3 {[%clk 0:02:45.4]} 12...
Rc8 {[%clk 0:02:32.8]} 13. Bd3 {[%clk 0:02:37.2]} 13... Nd5 {[%clk 0:02:11]} 14.
Bd2 {[%clk 0:02:21.3]} 14... cxd4 {[%clk 0:02:05.3]} 15. cxd4 {[%clk 0:02:18.9]}
15... f5 {[%clk 0:02:04.8]} 16. Qe1 {[%clk 0:02:05.2]} 16... Qd7 {[%clk
0:01:49.8]} 17. Rd1 {[%clk 0:01:52.2]} 17... Nce7 {[%clk 0:01:40]} 18. h3 {[%clk
0:01:44.9]} 18... Nf6 {[%clk 0:01:38]} 19. Bb4 {[%clk 0:01:39.2]} 19... Rfe8
{[%clk 0:01:36.5]} 20. Kh2 {[%clk 0:01:32.9]} 20... Ned5 {[%clk 0:01:30.7]} 21.
e4 {[%clk 0:01:23.7]} 21... fxe4 {[%clk 0:01:28.2]} 22. Nxe4 {[%clk 0:01:21.7]}
22... Nxe4 {[%clk 0:01:25.6]} 23. Qxe4 {[%clk 0:01:08.8]} 23... Nf6 {[%clk
0:01:23.3]} 24. Qe5 {[%clk 0:01:08.9]} 24... Qd5 {[%clk 0:01:15.2]} 25. Rf2
{[%clk 0:00:58.5]} 25... Bc6 {[%clk 0:00:43.9]} 26. Re1 {[%clk 0:00:40.2]} 26...
a5 {[%clk 0:00:34]} 27. Bd2 {[%clk 0:00:37.7]} 27... Rcd8 {[%clk 0:00:26.7]} 28.
Qxd5 {[%clk 0:00:30.9]} 28... Nxd5 {[%clk 0:00:20.3]} 29. f5 {[%clk 0:00:22.5]}
29... exf5 {[%clk 0:00:16.7]} 30. Bxf5 {[%clk 0:00:23.4]} 30... Rxe1 {[%clk
0:00:12.7]} 31. Bxe1 {[%clk 0:00:24.3]} 31... Bd7 {[%clk 0:00:09.1]} 32. Bd3
{[%clk 0:00:19]} 32... b5 {[%clk 0:00:05]} 33. Bxa5 {[%clk 0:00:17.9]} 33... Ra8
{[%clk 0:00:04.3]} 34. Be4 {[%clk 0:00:09.1]} 34... Be6 {[%clk 0:00:04.6]} 35.
Bb6 {[%clk 0:00:08.5]} 35... g6 {[%clk 0:00:03.3]} 36. Bc5 {[%clk 0:00:08.3]}
36... Kg7 {[%clk 0:00:02.9]} 37. Rb2 {[%clk 0:00:07.9]} 37... Rd8 {[%clk
0:00:01.9]} 38. Rxb5 {[%clk 0:00:07.5]} 38... Nf6 {[%clk 0:00:01.9]} 39. Rb7+
{[%clk 0:00:07.9]} 39... Rd7 {[%clk 0:00:02]} 40. Bc6 {[%clk 0:00:08.4]} 40...
Rxb7 {[%clk 0:00:01.8]} 41. Bxb7 {[%clk 0:00:09.3]} 41... Bd5 {[%clk 0:00:02.3]}
42. Bxd5 {[%clk 0:00:09.4]} 42... Nxd5 {[%clk 0:00:02.6]} 43. a4 {[%clk
0:00:10.3]} 43... Nc7 {[%clk 0:00:02.5]} 44. a5 {[%clk 0:00:10.8]} 44... Kf6
{[%clk 0:00:02.9]} 45. Bb6 {[%clk 0:00:10.1]} 45... Na6 {[%clk 0:00:03.4]} 46.
Kg3 {[%clk 0:00:09.7]} 46... Ke6 {[%clk 0:00:03.9]} 47. Kg4 {[%clk 0:00:10.1]}
47... Kf6 {[%clk 0:00:04.3]} 48. Kf4 {[%clk 0:00:10.4]} 48... h6 {[%clk
0:00:03.9]} 49. d5 {[%clk 0:00:10.9]} 1-0

[Event "Late-Titled-Tuesday-Blitz-March-19-2024"]
[Site "Chess.com"]
[Date "2024.03.19"]
[Round "11"]
[White "VitaliyBernadskiy"]
[Black "DanielNaroditsky"]
[Result "0-1"]
[WhiteElo "2900"]
[BlackElo "3160"]
[TimeControl "180+1"]
[EndTime "16:05:27 PDT"]
[Termination "DanielNaroditsky won on time"]

1. e4 {[%clk 0:03:00.2]} 1... c5 {[%clk 0:02:57.7]} 2. Nf3 {[%clk 0:03:00.4]}
2... d6 {[%clk 0:02:58]} 3. d4 {[%clk 0:03:00.5]} 3... cxd4 {[%clk 0:02:58.9]}
4. Nxd4 {[%clk 0:03:01.2]} 4... Nf6 {[%clk 0:02:59.7]} 5. Nc3 {[%clk 0:03:01.9]}
5... a6 {[%clk 0:03:00.5]} 6. Bd3 {[%clk 0:03:02.3]} 6... Nc6 {[%clk 0:02:59.8]}
7. Nxc6 {[%clk 0:03:00.3]} 7... bxc6 {[%clk 0:03:00.7]} 8. b3 {[%clk 0:03:00.7]}
8... g6 {[%clk 0:03:01.4]} 9. Bb2 {[%clk 0:03:01]} 9... Bg7 {[%clk 0:03:02.1]}
10. O-O {[%clk 0:03:01.4]} 10... O-O {[%clk 0:03:02.9]} 11. Na4 {[%clk
0:03:00.9]} 11... Qc7 {[%clk 0:03:01.2]} 12. Kh1 {[%clk 0:02:57.8]} 12... d5
{[%clk 0:03:00.5]} 13. exd5 {[%clk 0:02:52.1]} 13... Ng4 {[%clk 0:02:49.5]} 14.
g3 {[%clk 0:02:48.5]} 14... Bxb2 {[%clk 0:02:49.3]} 15. Nxb2 {[%clk 0:02:44.4]}
15... cxd5 {[%clk 0:02:49.6]} 16. Be2 {[%clk 0:02:37.5]} 16... Nf6 {[%clk
0:02:50.2]} 17. Bf3 {[%clk 0:02:28.5]} 17... Bh3 {[%clk 0:02:50.5]} 18. Re1
{[%clk 0:02:25.6]} 18... e5 {[%clk 0:02:51]} 19. c4 {[%clk 0:02:25.7]} 19... e4
{[%clk 0:02:48.1]} 20. Bg2 {[%clk 0:02:25.9]} 20... Bxg2+ {[%clk 0:02:38.4]} 21.
Kxg2 {[%clk 0:02:26.8]} 21... Qe5 {[%clk 0:02:39.2]} 22. Nd3 {[%clk 0:02:20.1]}
22... Qf5 {[%clk 0:02:38.3]} 23. Nf4 {[%clk 0:02:16]} 23... dxc4 {[%clk
0:02:39]} 24. bxc4 {[%clk 0:02:15.5]} 24... Rad8 {[%clk 0:02:39.8]} 25. Qe2
{[%clk 0:02:13.1]} 25... g5 {[%clk 0:02:40.5]} 26. Nd5 {[%clk 0:02:12.6]} 26...
Nxd5 {[%clk 0:02:35.4]} 27. cxd5 {[%clk 0:02:13.5]} 27... Rfe8 {[%clk
0:02:36.2]} 28. Rad1 {[%clk 0:02:09.8]} 28... Rxd5 {[%clk 0:02:36.3]} 29. Rxd5
{[%clk 0:01:48.9]} 29... Qxd5 {[%clk 0:02:37.2]} 30. Rd1 {[%clk 0:01:27.2]}
30... Qf5 {[%clk 0:02:37.7]} 31. Rd6 {[%clk 0:01:18.3]} 31... a5 {[%clk
0:02:34]} 32. Qe3 {[%clk 0:01:17.1]} 32... Kg7 {[%clk 0:02:14.1]} 33. Rc6 {[%clk
0:01:06.3]} 33... Re5 {[%clk 0:02:07.8]} 34. Qc3 {[%clk 0:01:02.4]} 34... f6
{[%clk 0:02:04.5]} 35. Rc7+ {[%clk 0:00:53.8]} 35... Kh6 {[%clk 0:01:59.8]} 36.
Qe3 {[%clk 0:00:49.9]} 36... Rd5 {[%clk 0:01:42.7]} 37. Re7 {[%clk 0:00:29.8]}
37... Re5 {[%clk 0:01:38.2]} 38. Rc7 {[%clk 0:00:29.5]} 38... Kg6 {[%clk
0:01:24.5]} 39. Qb3 {[%clk 0:00:28.6]} 39... Re6 {[%clk 0:00:51.4]} 40. Qe3
{[%clk 0:00:23.5]} 40... Qd5 {[%clk 0:00:24.8]} 41. h4 {[%clk 0:00:17.8]} 41...
h6 {[%clk 0:00:20]} 42. Rc5 {[%clk 0:00:13.8]} 42... Qxa2 {[%clk 0:00:16.3]} 43.
g4 {[%clk 0:00:06.5]} 43... Re7 {[%clk 0:00:14.2]} 44. h5+ {[%clk 0:00:05.6]}
44... Kg7 {[%clk 0:00:13]} 45. Rf5 {[%clk 0:00:06.1]} 45... Qe6 {[%clk
0:00:08.5]} 46. Kh3 {[%clk 0:00:06.1]} 46... a4 {[%clk 0:00:07.8]} 47. f3 {[%clk
0:00:05.4]} 47... exf3 {[%clk 0:00:05]} 48. Qxf3 {[%clk 0:00:05.9]} 48... Qb6
{[%clk 0:00:03.5]} 0-1

[Event "Late-Titled-Tuesday-Blitz-March-19-2024"]
[Site "Chess.com"]
[Date "2024.03.19"]
[Round "11"]
[White "Sanan_Sjugirov"]
[Black "NikoTheodorou"]
[Result "1-0"]
[WhiteElo "3028"]
[BlackElo "3096"]
[TimeControl "180+1"]
[EndTime "16:05:33 PDT"]
[Termination "Sanan_Sjugirov won by resignation"]

1. e4 {[%clk 0:03:00.9]} 1... e5 {[%clk 0:03:00]} 2. Nf3 {[%clk 0:03:00.8]} 2...
Nc6 {[%clk 0:03:00.8]} 3. Bb5 {[%clk 0:03:01.1]} 3... a6 {[%clk 0:03:00.9]} 4.
Ba4 {[%clk 0:03:01.2]} 4... f5 {[%clk 0:03:01.6]} 5. d3 {[%clk 0:02:50.9]} 5...
fxe4 {[%clk 0:03:01.5]} 6. dxe4 {[%clk 0:02:51.8]} 6... Nf6 {[%clk 0:03:02.2]}
7. O-O {[%clk 0:02:49.2]} 7... d6 {[%clk 0:03:02.9]} 8. Qd3 {[%clk 0:02:42.4]}
8... Be7 {[%clk 0:03:03]} 9. Bb3 {[%clk 0:02:33.1]} 9... Na5 {[%clk 0:03:02.4]}
10. Ng5 {[%clk 0:02:24.9]} 10... Nxb3 {[%clk 0:02:49]} 11. Qxb3 {[%clk
0:02:25.8]} 11... Rf8 {[%clk 0:02:49.3]} 12. f4 {[%clk 0:02:20]} 12... h6 {[%clk
0:02:46.7]} 13. Nf3 {[%clk 0:02:10.1]} 13... Nxe4 {[%clk 0:02:43.6]} 14. fxe5
{[%clk 0:01:50.9]} 14... d5 {[%clk 0:02:33.1]} 15. Be3 {[%clk 0:01:46.8]} 15...
Nc5 {[%clk 0:02:19]} 16. Bxc5 {[%clk 0:01:36.1]} 16... Bxc5+ {[%clk 0:02:19.9]}
17. Kh1 {[%clk 0:01:36.5]} 17... c6 {[%clk 0:02:14.2]} 18. Nc3 {[%clk
0:01:22.4]} 18... Qb6 {[%clk 0:02:06.4]} 19. Na4 {[%clk 0:01:03.3]} 19... Qxb3
{[%clk 0:02:06.6]} 20. axb3 {[%clk 0:01:04.2]} 20... Ba7 {[%clk 0:02:07.3]} 21.
b4 {[%clk 0:01:04.9]} 21... Bf5 {[%clk 0:01:57.5]} 22. Nc5 {[%clk 0:00:55.7]}
22... Bxc5 {[%clk 0:01:34.2]} 23. bxc5 {[%clk 0:00:56.6]} 23... Bxc2 {[%clk
0:01:34.7]} 24. Nd4 {[%clk 0:00:56.8]} 24... Bd3 {[%clk 0:01:28]} 25. Rxf8+
{[%clk 0:00:55.6]} 25... Kxf8 {[%clk 0:01:28.9]} 26. Ra3 {[%clk 0:00:52]} 26...
Be4 {[%clk 0:01:09.3]} 27. Rb3 {[%clk 0:00:50.1]} 27... Re8 {[%clk 0:01:10.1]}
28. Rxb7 {[%clk 0:00:33.5]} 28... Rxe5 {[%clk 0:01:08.4]} 29. Kg1 {[%clk
0:00:32.7]} 29... Bd3 {[%clk 0:01:01]} 30. Nxc6 {[%clk 0:00:24.4]} 30... Rf5
{[%clk 0:00:44.4]} 31. h3 {[%clk 0:00:22.6]} 31... Rf1+ {[%clk 0:00:43.7]} 32.
Kh2 {[%clk 0:00:22.8]} 32... Be4 {[%clk 0:00:43.1]} 33. Kg3 {[%clk 0:00:13.1]}
33... g5 {[%clk 0:00:35.1]} 34. Nd4 {[%clk 0:00:11.2]} 34... Rg1 {[%clk
0:00:31.8]} 35. Kg4 {[%clk 0:00:10.1]} 35... Rxg2+ {[%clk 0:00:29.2]} 36. Kh5
{[%clk 0:00:10.5]} 36... g4 {[%clk 0:00:25.9]} 37. h4 {[%clk 0:00:05.6]} 37...
g3 {[%clk 0:00:12.8]} 38. c6 {[%clk 0:00:05.7]} 38... Rg1 {[%clk 0:00:11.5]} 39.
c7 {[%clk 0:00:03.5]} 39... Rc1 {[%clk 0:00:11.8]} 40. Rb8+ {[%clk 0:00:03]}
40... Kf7 {[%clk 0:00:12.4]} 41. c8=Q {[%clk 0:00:03.7]} 41... Rxc8 {[%clk
0:00:12.7]} 42. Rxc8 {[%clk 0:00:04.6]} 42... g2 {[%clk 0:00:11.5]} 43. Rc1
{[%clk 0:00:04.5]} 43... Kf6 {[%clk 0:00:11.3]} 44. Kg4 {[%clk 0:00:04.8]} 44...
Ke5 {[%clk 0:00:11]} 45. Nf3+ {[%clk 0:00:04.9]} 45... Kf6 {[%clk 0:00:08.1]}
46. Kg3 {[%clk 0:00:05.2]} 46... Kf5 {[%clk 0:00:09]} 47. Nd2 {[%clk 0:00:03.8]}
47... Bd3 {[%clk 0:00:08.2]} 48. Kxg2 {[%clk 0:00:04.1]} 48... Kf4 {[%clk
0:00:08.9]} 49. Kf2 {[%clk 0:00:04.7]} 49... d4 {[%clk 0:00:08.9]} 50. Rc6
{[%clk 0:00:04.4]} 50... h5 {[%clk 0:00:08.4]} 51. Rd6 {[%clk 0:00:04.2]} 51...
Ke5 {[%clk 0:00:07.9]} 52. Rh6 {[%clk 0:00:04.4]} 52... Kf4 {[%clk 0:00:07]} 53.
Rxh5 {[%clk 0:00:04.6]} 53... Kg4 {[%clk 0:00:07.8]} 54. Rh8 {[%clk 0:00:04.7]}
54... a5 {[%clk 0:00:08.1]} 55. h5 {[%clk 0:00:05.1]} 55... Kg5 {[%clk 0:00:09]}
56. h6 {[%clk 0:00:05.5]} 56... Kg6 {[%clk 0:00:09.5]} 57. Nf3 {[%clk
0:00:05.9]} 1-0